bitfinex/quotes_BTCUSD_20260127
["timestamp","ask_amount","ask_price","bid_price","bid_amount"]
[1769472426772,0.6821658,88342.0,88330.0,0.0432886]
[1769472427594,0.1132081,88341.0,88330.0,0.0432886]
[1769472427802,0.6821658,88342.0,88330.0,0.0432886]
[1769472428028,0.11320821,88341.0,88330.0,0.0432886]
[1769472428233,0.6821658,88342.0,88330.0,0.0432886]
[1769472428443,0.01934129,88341.0,88330.0,0.37843115]
[1769472428653,0.0001204,88345.0,88332.0,0.65157303]
[1769472428834,0.0001204,88345.0,88333.0,0.04778653]
[1769472433338,0.6821658,88348.0,88333.0,0.04778653]
[1769472433537,0.6821658,88348.0,88334.0,0.04640608]
[1769472436362,0.6821658,88348.0,88334.0,0.09194374]
[1769472436746,0.6821658,88348.0,88334.0,0.04553766]
[1769472439396,0.67391279,88352.0,88334.0,0.04553766]
[1769472440431,0.11310802,88351.0,88334.0,0.04553766]
[1769472440651,0.11310802,88350.0,88334.0,0.04553766]
[1769472440854,0.11310802,88349.0,88335.0,0.03429331]
[1769472441036,0.64367694,88351.0,88336.0,0.03429331]
[1769472441252,0.0004664,88353.0,88340.0,0.37843115]
[1769472441474,0.0004664,88353.0,88331.0,0.03784311]
[1769472441475,0.0004664,88353.0,88346.0,0.6354544]
[1769472441680,0.000208,88357.0,88349.0,0.03429331]
[1769472441883,0.00029772,88357.0,88349.0,0.03429331]
[1769472442112,0.00029772,88357.0,88351.0,0.6354544]
[1769472442319,0.47797172,88367.0,88353.0,0.02979549]
[1769472443196,0.000208,88370.0,88353.0,0.02979549]
[1769472443405,0.000208,88370.0,88352.0,0.10138855]
[1769472443406,0.000208,88370.0,88355.0,0.02979549]
[1769472443616,0.000208,88370.0,88357.0,0.02979549]
[1769472444662,0.000208,88370.0,88358.0,0.02529793]
[1769472444874,0.000208,88370.0,88361.0,0.02529793]
[1769472446358,0.64367694,88378.0,88361.0,0.02529793]
[1769472446359,0.51700561,88378.0,88361.0,0.02529793]
[1769472446565,0.51709534,88378.0,88361.0,0.02529793]
[1769472446776,0.51709534,88378.0,88362.0,0.02449466]
[1769472447219,0.58498571,88378.0,88362.0,0.02449466]
[1769472447425,0.47369537,88377.0,88362.0,0.02449466]
[1769472448600,0.48501053,88377.0,88362.0,0.02449466]
[1769472448806,0.64367694,88375.0,88353.0,0.17416]
[1769472449024,0.64367694,88375.0,88354.0,0.02449466]
[1769472449890,0.64367694,88375.0,88355.0,0.02449466]
[1769472451286,0.37843115,88370.0,88355.0,0.02449466]
[1769472451465,0.68378316,88369.0,88355.0,0.02449466]
[1769472455030,0.64367694,88369.0,88355.0,0.02449466]
[1769472457669,0.64367694,88369.0,88351.0,0.6356272]
[1769472457670,0.64367694,88369.0,88351.0,0.0001728]
[1769472457954,0.64367694,88369.0,88351.0,0.02466746]
[1769472458356,0.02275353,88368.0,88351.0,0.02466746]
[1769472458559,0.66643047,88367.0,88351.0,0.02466746]
[1769472458873,0.66643047,88367.0,88351.0,0.0001728]
[1769472459089,0.7421261,88367.0,88351.0,0.0001728]
[1769472461477,0.64367694,88365.0,88351.0,0.0001728]
[1769472465349,0.64367694,88365.0,88351.0,0.02466746]
[1769472465547,0.37843115,88370.0,88351.0,0.02466746]
[1769472465759,0.64367694,88369.0,88351.0,0.02466746]
[1769472466742,0.42665,88369.0,88351.0,0.02466746]
[1769472471235,0.52414369,88369.0,88351.0,0.02466746]
[1769472474703,0.01739405,88367.0,88351.0,0.02466746]
[1769472474870,0.64006702,88366.0,88351.0,0.02466746]
[1769472478518,0.41010041,88366.0,88351.0,0.02466746]
[1769472483404,0.41010041,88366.0,88351.0,0.0001728]
[1769472483824,0.37823685,88361.0,88351.0,0.0001728]
[1769472484030,0.01131669,88365.0,88344.0,0.0239038]
[1769472484031,0.00389993,88365.0,88344.0,0.0239038]
[1769472484448,0.01131669,88365.0,88344.0,0.0239038]
[1769472484653,0.11330582,88364.0,88344.0,0.0239038]
[1769472484864,0.01131656,88366.0,88344.0,0.0239038]
[1769472485078,0.11330528,88365.0,88344.0,0.0239038]
[1769472485265,0.11330528,88364.0,88344.0,0.0239038]
[1769472485468,0.01131656,88366.0,88344.0,0.0239038]
[1769472485671,0.01131656,88366.0,88341.0,0.64714151]
[1769472485672,0.11330382,88365.0,88341.0,0.64714151]
[1769472485875,0.11330382,88364.0,88342.0,0.02529907]
[1769472486078,0.01131656,88366.0,88342.0,0.02529907]
[1769472486279,0.11330416,88365.0,88342.0,0.02529907]
[1769472486486,0.11330416,88364.0,88343.0,0.64714151]
[1769472486695,0.06789868,88367.0,88345.0,0.02529907]
[1769472486907,0.06790146,88364.0,88345.0,0.02529907]
[1769472487116,0.06790018,88365.0,88345.0,0.02529907]
[1769472487346,0.11330356,88364.0,88345.0,0.02529907]
[1769472487577,0.2263253,88369.0,88340.0,0.55251425]
[1769472487578,0.113304,88363.0,88340.0,0.0001974]
[1769472487798,0.0097684,88345.0,88340.0,0.0001974]
[1769472488001,0.37823685,88350.0,88333.0,0.02529907]
[1769472488206,0.11328606,88349.0,88333.0,0.02529907]
[1769472488414,0.37823685,88350.0,88333.0,0.02529907]
[1769472488415,0.11319452,88348.0,88333.0,0.02529907]
[1769472488634,0.37823685,88350.0,88333.0,0.02529907]
[1769472488845,0.11319447,88349.0,88333.0,0.02529907]
[1769472489051,0.11319447,88349.0,88333.0,0.02576547]
[1769472491614,0.19968713,88349.0,88333.0,0.02576547]
[1769472491849,0.11306036,88348.0,88333.0,0.02576547]
[1769472492061,0.01131746,88359.0,88333.0,0.02576547]
[1769472492320,0.23070459,88364.0,88348.0,0.0002316]
[1769472492516,0.24202141,88364.0,88348.0,0.0002316]
[1769472492718,0.24202141,88364.0,88333.0,0.0004664]
[1769472492719,0.37823685,88360.0,88334.0,0.02979725]
[1769472492930,0.01131797,88355.0,88334.0,0.02979725]
[1769472493262,0.0113181,88354.0,88334.0,0.02979725]
[1769472493467,0.01131797,88355.0,88334.0,0.02979725]
[1769472493667,0.06790732,88356.0,88334.0,0.02979725]
[1769472493869,0.01131797,88355.0,88334.0,0.02979725]
[1769472494107,0.0113181,88354.0,88335.0,0.10558394]
[1769472494279,0.0113181,88354.0,88336.0,0.02979725]
[1769472494643,0.01131797,88355.0,88336.0,0.02979725]
[1769472495066,0.0113181,88354.0,88336.0,0.02979725]
[1769472495414,0.06790794,88355.0,88336.0,0.02979725]
[1769472495609,0.0113181,88354.0,88336.0,0.02979725]
[1769472497543,0.01131823,88353.0,88336.0,0.02979725]
[1769472498169,0.06790915,88354.0,88336.0,0.02979725]
[1769472498376,0.01131823,88353.0,88336.0,0.02979725]
[1769472499009,0.01131836,88352.0,88336.0,0.02979725]
[1769472499215,0.01131823,88353.0,88336.0,0.02979725]
[1769472499616,0.01131836,88352.0,88336.0,0.02979725]
[1769472499799,0.03035,88355.0,88336.0,0.02979725]
[1769472500067,0.0113181,88354.0,88336.0,0.02979725]
[1769472500445,0.06790887,88354.0,88336.0,0.02979725]
[1769472500669,0.01131823,88353.0,88336.0,0.02979725]
[1769472501014,0.06790887,88354.0,88336.0,0.02979725]
[1769472501218,0.01131823,88353.0,88336.0,0.02979725]
[1769472501418,0.0113181,88354.0,88336.0,0.02979725]
[1769472501658,0.06790879,88354.0,88336.0,0.02979725]
[1769472502067,0.01131823,88353.0,88336.0,0.02979725]
[1769472502383,0.08649061,88353.0,88336.0,0.02979725]
[1769472503168,0.07517238,88353.0,88336.0,0.02979725]
[1769472503366,0.37823685,88350.0,88336.0,0.02979725]
[1769472504380,0.38955546,88350.0,88336.0,0.02979725]
[1769472504580,0.37823685,88350.0,88336.0,0.02979725]
[1769472504779,0.37823685,88340.0,88328.0,0.0001974]
[1769472504982,0.37870319,88340.0,88328.0,0.0001974]
[1769472505193,0.01132015,88338.0,88328.0,0.0001974]
[1769472505392,0.06792049,88339.0,88328.0,0.0001974]
[1769472505613,0.01132015,88338.0,88328.0,0.0001974]
[1769472505814,0.39002309,88340.0,88328.0,0.0001974]
[1769472505993,0.00046634,88340.0,88328.0,0.0001974]
[1769472506193,0.00046634,88340.0,88330.0,0.63122756]
[1769472506442,0.00046634,88340.0,88332.0,0.02754832]
[1769472512084,0.53658591,88350.0,88332.0,0.02754832]
[1769472512285,0.0565953,88347.0,88332.0,0.02763804]
[1769472512470,0.11300939,88346.0,88332.0,0.02763804]
[1769472512817,0.11300939,88345.0,88332.0,0.02763804]
[1769472513022,0.11300939,88344.0,88333.0,0.03664611]
[1769472513223,0.011319,88347.0,88333.0,0.03664611]
[1769472513553,0.11304014,88346.0,88333.0,0.03664611]
[1769472513755,0.011319,88347.0,88333.0,0.03664611]
[1769472513756,0.11304014,88345.0,88333.0,0.03664611]
[1769472513917,0.11304014,88344.0,88333.0,0.03664611]
[1769472514116,0.11304014,88343.0,88333.0,0.03664611]
[1769472514371,0.011319,88347.0,88333.0,0.03664611]
[1769472514634,0.011319,88347.0,88332.0,8.972e-05]
[1769472514635,0.37823685,88343.0,88332.0,8.972e-05]
[1769472514782,0.11305952,88342.0,88332.0,8.972e-05]
[1769472515038,0.01131925,88345.0,88332.0,8.972e-05]
[1769472515257,0.11305629,88344.0,88332.0,8.972e-05]
[1769472515458,0.11305629,88343.0,88332.0,8.972e-05]
[1769472515634,0.11305629,88342.0,88332.0,8.972e-05]
[1769472515837,0.06791435,88347.0,88332.0,8.972e-05]
[1769472516035,0.11307829,88346.0,88332.0,8.972e-05]
[1769472516238,0.11307829,88345.0,88332.0,8.972e-05]
[1769472516435,0.11307829,88344.0,88332.0,8.972e-05]
[1769472516662,0.11307829,88343.0,88332.0,8.972e-05]
[1769472516836,0.11307829,88342.0,88332.0,8.972e-05]
[1769472517040,0.011319,88347.0,88332.0,8.972e-05]
[1769472517041,0.11307829,88341.0,88332.0,8.972e-05]
[1769472517242,0.06791348,88348.0,88332.0,8.972e-05]
[1769472517521,0.09200532,88348.0,88332.0,8.972e-05]
[1769472517724,0.08068642,88348.0,88332.0,8.972e-05]
[1769472518059,0.011319,88347.0,88332.0,8.972e-05]
[1769472518271,0.03541071,88348.0,88332.0,0.06554193]
[1769472519157,0.09200533,88348.0,88332.0,0.06554193]
[1769472519361,0.011319,88347.0,88332.0,0.06554193]
[1769472519569,0.09200533,88348.0,88332.0,0.06554193]
[1769472520167,0.011319,88347.0,88332.0,0.06554193]
[1769472520396,0.01131925,88345.0,88332.0,0.06554193]
[1769472520593,0.01131925,88345.0,88332.0,8.972e-05]
[1769472521372,0.06791674,88344.0,88332.0,8.972e-05]
[1769472521579,0.01131938,88344.0,88332.0,8.972e-05]
[1769472522241,0.05659778,88343.0,88332.0,8.972e-05]
[1769472522498,0.38955649,88342.0,88332.0,8.972e-05]
[1769472522657,0.02409184,88343.0,88332.0,8.972e-05]
[1769472525239,0.01131874,88349.0,88332.0,8.972e-05]
[1769472525448,0.01131913,88346.0,88332.0,8.972e-05]
[1769472525646,0.65975435,88347.0,88332.0,8.972e-05]
[1769472526098,0.01131913,88346.0,88332.0,0.06554193]
[1769472526290,0.65975435,88347.0,88332.0,0.06554193]
[1769472526291,0.60315889,88347.0,88332.0,0.06554193]
[1769472526498,0.65975431,88347.0,88332.0,8.972e-05]
[1769472526830,0.60315889,88347.0,88332.0,8.972e-05]
[1769472526966,0.01131913,88346.0,88332.0,8.972e-05]
[1769472527173,0.60315889,88347.0,88332.0,8.972e-05]
[1769472527608,0.69360718,88347.0,88332.0,8.972e-05]
[1769472527988,0.68228818,88347.0,88332.0,8.972e-05]
[1769472528566,0.69360718,88347.0,88332.0,8.972e-05]
[1769472528777,0.68228818,88347.0,88332.0,8.972e-05]
[1769472529368,0.69360718,88347.0,88332.0,8.972e-05]
[1769472529574,0.11314762,88346.0,88332.0,8.972e-05]
[1769472529778,0.69360718,88347.0,88332.0,8.972e-05]
[1769472529779,0.06791426,88347.0,88332.0,8.972e-05]
[1769472530228,0.01131913,88346.0,88332.0,0.06554193]
[1769472530450,0.05659629,88345.0,88332.0,0.06554193]
[1769472530672,0.01131913,88346.0,88332.0,0.06554193]
[1769472530673,0.06791512,88346.0,88332.0,8.972e-05]
[1769472530873,0.0177631,88344.0,88332.0,8.972e-05]
[1769472537749,0.02908248,88344.0,88332.0,8.972e-05]
[1769472537958,0.0177631,88344.0,88332.0,8.972e-05]
[1769472538965,0.22637498,88349.0,88332.0,8.972e-05]
[1769472539164,0.05659589,88346.0,88332.0,8.972e-05]
[1769472539379,0.06791563,88345.0,88332.0,8.972e-05]
[1769472539954,0.01131925,88345.0,88332.0,8.972e-05]
[1769472540555,0.06791502,88346.0,88332.0,8.972e-05]
[1769472541373,0.01131925,88345.0,88332.0,8.972e-05]
[1769472541580,0.05659719,88344.0,88332.0,8.972e-05]
[1769472541779,0.11328964,88343.0,88332.0,8.972e-05]
[1769472541994,0.11328964,88342.0,88332.0,8.972e-05]
[1769472542190,0.11328964,88341.0,88332.0,8.972e-05]
[1769472542534,0.11328964,88340.0,88332.0,8.972e-05]
[1769472542854,0.11328964,88339.0,88332.0,8.972e-05]
[1769472543026,0.11328964,88338.0,88332.0,8.972e-05]
[1769472543239,0.11328964,88337.0,88332.0,8.972e-05]
[1769472543389,0.11328964,88336.0,88332.0,8.972e-05]
[1769472543587,0.06791561,88345.0,88332.0,8.972e-05]
[1769472543838,0.11328717,88344.0,88332.0,8.972e-05]
[1769472543992,0.11328717,88343.0,88332.0,8.972e-05]
[1769472544399,0.11328717,88342.0,88332.0,8.972e-05]
[1769472544783,0.11328717,88341.0,88332.0,8.972e-05]
[1769472545048,0.11328717,88340.0,88332.0,8.972e-05]
[1769472545225,0.11328717,88339.0,88332.0,8.972e-05]
[1769472545502,0.11328717,88338.0,88332.0,8.972e-05]
[1769472545712,0.01131938,88344.0,88328.0,0.0001251]
[1769472545713,8.972e-05,88332.0,88328.0,0.0001251]
[1769472545923,8.972e-05,88332.0,88328.0,0.00059144]
[1769472546146,0.02350808,88339.0,88328.0,0.00059144]
[1769472546373,0.11326788,88338.0,88328.0,0.00059144]
[1769472546550,0.11326788,88337.0,88328.0,0.00059144]
[1769472546722,0.87839885,88340.0,88328.0,0.00059144]
[1769472546723,0.11326788,88336.0,88328.0,0.00059144]
[1769472546920,0.11326788,88335.0,88328.0,0.00059144]
[1769472547157,0.11326788,88334.0,88328.0,0.00059144]
[1769472547360,0.11326788,88333.0,88328.0,0.00059144]
[1769472547517,0.94631847,88340.0,88328.0,0.00059144]
[1769472547719,0.01132041,88336.0,88328.0,0.00059144]
[1769472548102,0.11323427,88335.0,88328.0,0.00059144]
[1769472548382,0.11323427,88334.0,88328.0,0.00059144]
[1769472548562,0.11323427,88333.0,88328.0,0.00059144]
[1769472548770,0.11323427,88332.0,88328.0,0.00059144]
[1769472548938,0.11323427,88331.0,88328.0,0.00059144]
[1769472549136,0.11323427,88330.0,88328.0,0.00059144]
[1769472549344,0.87839885,88340.0,88328.0,0.00059144]
[1769472549345,0.5,88340.0,88330.0,0.02498833]
[1769472549540,0.11315282,88339.0,88330.0,0.65722756]
[1769472549738,0.5,88340.0,88330.0,0.65722756]
[1769472549739,0.11315282,88338.0,88331.0,0.02498833]
[1769472549969,0.11315282,88337.0,88331.0,0.02498833]
[1769472550121,0.11315282,88336.0,88331.0,0.02498833]
[1769472550321,0.11315282,88335.0,88331.0,0.02498833]
[1769472550628,0.11315282,88334.0,88331.0,0.02498833]
[1769472550829,0.11315282,88333.0,88331.0,0.02498833]
[1769472551052,0.11315282,88332.0,88331.0,0.02498833]
[1769472555236,0.5,88340.0,88331.0,0.02498833]
[1769472555373,0.11308264,88339.0,88331.0,0.02498833]
[1769472555572,0.11308264,88338.0,88331.0,0.02498833]
[1769472555781,0.11308264,88337.0,88331.0,0.02498833]
[1769472556007,0.11308264,88336.0,88331.0,0.02498833]
[1769472556232,0.11308264,88335.0,88331.0,0.02498833]
[1769472556549,0.11308264,88334.0,88331.0,0.02498833]
[1769472556734,0.11308264,88333.0,88331.0,0.02498833]
[1769472556872,0.11308264,88332.0,88331.0,0.02498833]
[1769472561129,0.11308264,88332.0,88328.0,0.00059144]
[1769472561352,0.01131938,88344.0,88329.0,0.02348915]
[1769472561563,0.11304582,88343.0,88329.0,0.02348915]
[1769472561767,0.11304582,88342.0,88329.0,0.02348915]
[1769472561975,0.11304582,88342.0,88329.0,0.07278247]
[1769472562160,0.11304582,88343.0,88329.0,0.07278247]
[1769472562366,0.11304582,88342.0,88329.0,0.07278247]
[1769472562590,0.11304582,88341.0,88329.0,0.07278247]
[1769472562892,0.11304582,88340.0,88329.0,0.07278247]
[1769472563185,0.11304582,88339.0,88330.0,0.07306015]
[1769472563398,0.5,88350.0,88332.0,0.02348915]
[1769472563604,0.5,88350.0,88340.0,0.37839885]
[1769472563810,0.5,88350.0,88339.0,0.02348915]
[1769472564028,0.5,88350.0,88340.0,0.07101001]
[1769472564238,0.5,88350.0,88331.0,0.02348915]
[1769472564239,0.01,88340.0,88331.0,0.02348915]
[1769472564682,0.0679125,88349.0,88331.0,0.02348915]
[1769472564883,0.06791256,88349.0,88331.0,0.02348915]
[1769472565088,0.01131887,88348.0,88331.0,0.02348915]
[1769472565311,0.01131874,88349.0,88331.0,0.02348915]
[1769472566507,0.06791107,88351.0,88331.0,0.02348915]
[1769472566715,0.01131874,88349.0,88331.0,0.02348915]
[1769472566892,0.08556586,88350.0,88331.0,0.02348915]
[1769472567076,0.01131874,88349.0,88331.0,0.02348915]
[1769472567278,0.08556586,88350.0,88331.0,0.02348915]
[1769472567279,0.06791203,88351.0,88331.0,0.02348915]
[1769472567482,0.01131849,88351.0,88334.0,0.68661092]
[1769472567702,0.06791073,88352.0,88335.0,0.02348915]
[1769472568196,0.01131836,88352.0,88335.0,0.02348915]
[1769472568404,0.06791032,88352.0,88335.0,0.02348915]
[1769472568598,0.06791097,88351.0,88335.0,0.02348915]
[1769472568804,0.01131861,88350.0,88335.0,0.02348915]
[1769472569001,0.06791097,88351.0,88335.0,0.02348915]
[1769472569209,0.01131861,88350.0,88335.0,0.02348915]
[1769472569628,0.06791097,88351.0,88335.0,0.02348915]
[1769472570244,0.06791208,88350.0,88335.0,0.02348915]
[1769472570452,0.03123644,88350.0,88335.0,0.02348915]
[1769472570615,0.01131887,88348.0,88335.0,0.02348915]
[1769472570811,0.06791171,88350.0,88335.0,0.02348915]
[1769472571014,0.06791291,88349.0,88335.0,0.02348915]
[1769472571320,0.01131925,88345.0,88330.0,0.37839885]
[1769472572537,0.01131938,88344.0,88330.0,0.37839885]
[1769472572724,0.06791517,88346.0,88330.0,0.37839885]
[1769472572725,0.5,88340.0,88330.0,0.37839885]
[1769472574993,0.5,88340.0,88330.0,1.06500977]
[1769472575622,0.5,88340.0,88330.0,0.37839885]
[1769472575946,0.5,88340.0,88331.0,0.68661092]
[1769472577568,0.5,88340.0,88331.0,0.70771371]
[1769472579173,0.5,88340.0,88331.0,0.73120286]
[1769472579418,0.63100648,88355.0,88331.0,0.02110279]
[1769472579620,0.66528063,88355.0,88340.0,0.37839885]
[1769472579844,0.02295618,88354.0,88340.0,0.37839885]
[1769472580049,0.02295618,88354.0,88340.0,0.48724874]
[1769472580469,0.63100648,88355.0,88340.0,0.48724874]
[1769472580470,0.48614254,88355.0,88340.0,0.48724874]
[1769472581253,0.47482457,88355.0,88340.0,0.48724874]
[1769472581678,0.06790731,88356.0,88328.0,0.00058414]
[1769472581679,0.64100648,88340.0,88328.0,0.00058414]
[1769472581845,0.02295618,88337.0,88328.0,0.00058414]
[1769472582051,0.01131938,88344.0,88328.0,0.00058414]
[1769472582052,0.65396266,88335.0,88328.0,0.00058414]
[1769472582973,0.63100648,88342.0,88328.0,0.00058414]
[1769472583228,0.02295618,88344.0,88330.0,0.37839885]
[1769472583431,0.17416,88348.0,88331.0,0.68661092]
[1769472583816,0.19711618,88348.0,88331.0,0.68661092]
[1769472584422,0.02295618,88347.0,88331.0,0.68661092]
[1769472590441,0.02476732,88346.0,88331.0,0.68661092]
[1769472591406,0.02476732,88344.0,88328.0,0.00058414]
[1769472591907,0.02476732,88344.0,88328.0,0.69076716]
[1769472599136,0.17416,88348.0,88328.0,0.69076716]
[1769472599304,0.17416,88348.0,88332.0,0.69018302]
[1769472599521,0.17416,88348.0,88332.0,0.69885967]
[1769472600110,0.02476732,88349.0,88332.0,0.80664394]
[1769472601950,0.02476732,88349.0,88332.0,0.69885967]
[1769472608625,0.02476732,88349.0,88332.0,0.69018302]
[1769472617007,0.09044829,88353.0,88332.0,0.69018302]
[1769472617205,0.26478649,88359.0,88340.0,0.69018302]
[1769472617413,0.0001782,88359.0,88340.0,0.69018302]
[1769472617621,0.0001782,88359.0,88340.0,0.79703637]
[1769472619525,0.04536,88365.0,88340.0,0.10685335]
[1769472619721,0.02740753,88367.0,88350.0,0.64166719]
[1769472619924,0.6555475,88375.0,88350.0,0.64166719]
[1769472619925,0.02740753,88373.0,88350.0,0.64166719]
[1769472620126,0.02740753,88373.0,88352.0,0.66370763]
[1769472620337,0.37835044,88370.0,88352.0,0.66370763]
[1769472620789,0.02740753,88373.0,88352.0,0.66370763]
[1769472621687,0.02740753,88369.0,88352.0,0.66370763]
[1769472621930,0.02740753,88365.0,88351.0,0.17416]
[1769472623741,0.02740753,88365.0,88345.0,0.66370763]
[1769472623963,0.02740753,88365.0,88351.0,0.17412]
[1769472626351,0.02740753,88365.0,88338.0,0.66370763]
[1769472626352,0.64991939,88360.0,88338.0,0.66370763]
[1769472626557,0.64991939,88360.0,88339.0,0.21948]
[1769472626558,0.02740753,88359.0,88339.0,0.21948]
[1769472626765,0.02740753,88359.0,88340.0,0.66370763]
[1769472627164,0.02740753,88359.0,88340.0,1.04205807]
[1769472627394,0.02740753,88359.0,88341.0,0.66370763]
[1769472628256,0.64991939,88358.0,88340.0,0.37835044]
[1769472628431,0.64991939,88356.0,88340.0,0.37835044]
[1769472628637,0.02740753,88353.0,88340.0,0.37835044]
[1769472628818,0.02740753,88351.0,88340.0,0.37835044]
[1769472632221,0.000148,88368.0,88340.0,0.37835044]
[1769472632222,0.02324691,88367.0,88342.0,0.66370763]
[1769472632430,0.02324691,88367.0,88350.0,0.37835044]
[1769472633024,0.02324691,88367.0,88342.0,0.68771502]
[1769472634842,0.02324691,88367.0,88343.0,0.83782763]
[1769472635049,0.02324691,88367.0,88344.0,0.11160278]
[1769472635637,0.02324691,88367.0,88350.0,0.37835044]
[1769472636438,0.17233415,88380.0,88350.0,0.37835044]
[1769472636647,0.02324691,88379.0,88350.0,0.37849844]
[1769472637134,0.02324691,88379.0,88350.0,1.06621346]
[1769472637335,0.02324691,88379.0,88351.0,0.11160278]
[1769472637942,0.02324691,88379.0,88351.0,0.11175078]
[1769472638142,0.02324691,88379.0,88352.0,0.02400739]
[1769472638344,0.02324691,88379.0,88352.0,0.68771502]
[1769472638551,0.02324691,88379.0,88353.0,0.02400739]
[1769472638732,0.02324691,88379.0,88354.0,0.10662135]
[1769472639537,0.02324691,88379.0,88360.0,0.32163018]
[1769472639907,0.02324691,88379.0,88358.0,0.17412]
[1769472640202,0.02324691,88379.0,88358.0,0.83782763]
[1769472640831,0.02324691,88379.0,88358.0,0.17412]
[1769472641027,0.02324691,88385.0,88365.0,0.66370763]
[1769472641255,0.02336836,88385.0,88365.0,0.66370763]
[1769472641661,0.02336836,88385.0,88362.0,0.02400739]
[1769472642690,0.02336836,88385.0,88362.0,0.68771502]
[1769472643454,0.02336836,88385.0,88362.0,0.66370763]
[1769472643632,0.02336836,88385.0,88360.0,0.37835044]
[1769472643633,0.02336836,88385.0,88364.0,0.66370763]
[1769472645527,0.06164145,88384.0,88364.0,0.66370763]
[1769472645731,0.06164145,88380.0,88364.0,0.66370763]
[1769472645935,0.02324691,88379.0,88364.0,0.66370763]
[1769472646132,0.02324691,88379.0,88361.0,0.04536]
[1769472646133,0.02324691,88379.0,88365.0,0.17412]
[1769472646338,0.02324691,88377.0,88365.0,0.17412]
[1769472650717,0.01131516,88377.0,88334.0,0.13602507]
[1769472650909,0.01131516,88377.0,88333.0,0.1476]
[1769472650910,0.60489912,88369.0,88351.0,0.02335502]
[1769472651163,0.02472943,88368.0,88351.0,0.02335502]
[1769472651490,0.11160278,88367.0,88351.0,0.02335502]
[1769472652505,0.02472943,88368.0,88351.0,0.02335502]
[1769472652866,0.02472943,88368.0,88353.0,0.67486786]
[1769472657708,0.009852,88353.0,88346.0,0.000148]
[1769472658115,0.02472943,88354.0,88346.0,0.000148]
[1769472658317,0.02472943,88353.0,88346.0,0.000148]
[1769472658967,0.02472943,88353.0,88346.0,0.00026406]
[1769472661716,0.60489912,88351.0,88320.0,0.37849844]
[1769472661940,0.02472943,88348.0,88331.0,0.17412]
[1769472663000,0.02472943,88348.0,88336.0,0.0001825]
[1769472665091,0.0001108,88351.0,88336.0,0.0001825]
[1769472666084,0.0001108,88351.0,88336.0,0.67505036]
[1769472666313,0.0001108,88351.0,88336.0,0.78665314]
[1769472667551,0.0001108,88351.0,88336.0,0.67505036]
[1769472672486,0.0001108,88351.0,88336.0,0.69848897]
[1769472674465,0.0001108,88351.0,88337.0,0.02343861]
[1769472675862,0.0001108,88351.0,88339.0,0.02343861]
[1769472676202,0.6046377,88363.0,88344.0,0.67486786]
[1769472676348,0.6046377,88363.0,88347.0,0.02343861]
[1769472676349,0.1126645,88362.0,88347.0,0.02343861]
[1769472676550,0.1126645,88361.0,88351.0,0.67486786]
[1769472676750,0.1126645,88360.0,88353.0,0.02343861]
[1769472676986,6.861e-05,88363.0,88353.0,0.02343861]
[1769472676987,0.1126645,88359.0,88353.0,0.02343861]
[1769472677167,0.1126645,88358.0,88353.0,0.02343861]
[1769472677374,0.1126645,88357.0,88348.0,0.02343861]
[1769472677586,6.861e-05,88363.0,88348.0,0.02343861]
[1769472677784,0.11268736,88362.0,88348.0,0.02343861]
[1769472677985,0.11268736,88361.0,88348.0,0.02343861]
[1769472678220,0.11268736,88360.0,88348.0,0.02343861]
[1769472678378,0.11268736,88359.0,88348.0,0.02343861]
[1769472678578,0.11268736,88358.0,88348.0,0.02343861]
[1769472678792,0.11268736,88357.0,88348.0,0.02343861]
[1769472678999,0.11268736,88356.0,88348.0,0.02343861]
[1769472679195,6.861e-05,88363.0,88348.0,0.02343861]
[1769472679382,0.11276372,88362.0,88348.0,0.02343861]
[1769472679587,0.11276372,88361.0,88348.0,0.02343861]
[1769472679808,0.11276372,88360.0,88348.0,0.02343861]
[1769472680007,0.11276372,88359.0,88348.0,0.02343861]
[1769472680225,0.11276372,88358.0,88348.0,0.02343861]
[1769472680425,0.11276372,88357.0,88348.0,0.02343861]
[1769472680626,0.11276372,88356.0,88348.0,0.02343861]
[1769472680952,6.861e-05,88363.0,88348.0,0.02343861]
[1769472681158,0.1128005,88362.0,88348.0,0.02343861]
[1769472681388,0.1128005,88361.0,88348.0,0.02343861]
[1769472681577,0.1128005,88360.0,88348.0,0.02343861]
[1769472681782,0.1128005,88359.0,88348.0,0.02343861]
[1769472681926,0.1128005,88358.0,88348.0,0.02343861]
[1769472682128,0.1128005,88357.0,88348.0,0.02343861]
[1769472682330,0.1128005,88356.0,88348.0,0.02343861]
[1769472682540,0.1128005,88355.0,88348.0,0.02343861]
[1769472682742,6.861e-05,88363.0,88348.0,0.02343861]
[1769472682937,6.861e-05,88363.0,88350.0,0.02373748]
[1769472682938,0.11283358,88362.0,88350.0,0.02373748]
[1769472683175,0.11283358,88361.0,88350.0,0.02373748]
[1769472683411,0.11283358,88360.0,88352.0,0.02373748]
[1769472683576,6.861e-05,88363.0,88353.0,0.02373748]
[1769472683577,0.11283358,88359.0,88353.0,0.02373748]
[1769472683779,0.11283358,88358.0,88353.0,0.02373748]
[1769472683959,6.861e-05,88363.0,88350.0,0.37831697]
[1769472683960,0.11283358,88357.0,88355.0,0.02373748]
[1769472684160,6.861e-05,88363.0,88355.0,0.02373748]
[1769472684348,0.11285566,88362.0,88355.0,0.02373748]
[1769472684549,0.11285566,88361.0,88355.0,0.02373748]
[1769472684854,0.11285566,88360.0,88355.0,0.66876275]
[1769472685120,0.11285566,88359.0,88356.0,0.02373748]
[1769472685324,0.11285566,88358.0,88357.0,0.69250023]
[1769472685635,0.11289503,88362.0,88358.0,0.02373748]
[1769472685778,6.861e-05,88363.0,88358.0,0.02373748]
[1769472685779,0.11289576,88361.0,88358.0,0.02373748]
[1769472685979,0.11289576,88360.0,88358.0,0.02373748]
[1769472686187,0.11289576,88359.0,88358.0,0.02373748]
[1769472688008,0.11289576,88359.0,88358.0,1e-08]
[1769472688233,0.11289576,88359.0,88352.0,0.69250023]
[1769472688412,0.11289576,88358.0,88352.0,0.69250023]
[1769472688605,0.91069948,88370.0,88353.0,0.02373748]
[1769472688862,0.91069948,88370.0,88353.0,0.02380609]
[1769472690067,0.91069948,88370.0,88353.0,0.69256884]
[1769472690608,0.53238251,88370.0,88353.0,0.69256884]
[1769472690933,0.53238251,88370.0,88353.0,0.66883136]
[1769472691130,0.0002085,88377.0,88362.0,0.02373748]
[1769472691396,0.0002085,88377.0,88360.0,0.37831697]
[1769472691397,0.0002085,88377.0,88364.0,0.69250023]
[1769472691567,0.0002085,88377.0,88365.0,0.02373748]
[1769472692257,0.0002085,88377.0,88367.0,0.66876275]
[1769472692462,0.0002085,88377.0,88368.0,0.02373748]
[1769472694638,0.0002085,88377.0,88363.0,0.17412]
[1769472694786,0.0002085,88377.0,88363.0,0.19785748]
[1769472695591,0.0002085,88377.0,88364.0,0.02373748]
[1769472695794,0.011314,88386.0,88364.0,0.02373748]
[1769472695795,0.08643286,88386.0,88364.0,0.02373748]
[1769472696212,0.01854845,88386.0,88364.0,0.02373748]
[1769472696658,0.02986245,88386.0,88364.0,0.02373748]
[1769472697503,0.01854845,88386.0,88364.0,0.02373748]
[1769472697714,0.01854845,88386.0,88365.0,0.11160278]
[1769472697916,0.01854845,88386.0,88366.0,0.02373748]